fUST/lending_fUST_20250524
["ID","MTS","AMOUNT","RATE_DAILY","PERIOD"]
[362150530,1748040648399,-430.0,0.00019807,2]
[362150531,1748040648408,-430.0,0.00019807,2]
[362150532,1748040648417,-430.0,0.00019807,2]
[362150533,1748040648427,-430.0,0.00019807,2]
[362150534,1748040648436,-430.0,0.00019807,2]
[362150535,1748040648445,-430.0,0.00019807,2]
[362150536,1748040648455,-430.0,0.00019807,2]
[362150537,1748040648465,-430.0,0.00019807,2]
[362150538,1748040648475,-430.0,0.00019807,2]
[362150539,1748040648486,-430.0,0.00019807,2]
[362150540,1748040648496,-430.0,0.00019807,2]
[362150541,1748040648506,-482.22822194,0.00019807,2]
[362150542,1748040648515,-430.0,0.00019807,2]
[362150543,1748040648525,-430.0,0.00019807,2]
[362150544,1748040648534,-430.0,0.00019807,2]
[362150545,1748040648543,-521.18,0.00019807,2]
[362150546,1748040648553,-430.0,0.00019807,2]
[362150547,1748040648562,-430.0,0.00019807,2]
[362150548,1748040648572,-430.0,0.00019807,2]
[362150549,1748040648582,-545.34,0.00019807,2]
[362150550,1748040648592,-430.0,0.00019807,2]
[362150551,1748040648601,-430.0,0.00019807,2]
[362150552,1748040648610,-430.0,0.00019807,2]
[362150553,1748040648619,-470.0,0.00019807,2]
[362150554,1748040648628,-320.0,0.00019807,2]
[362150555,1748040648638,-470.0,0.00019808,2]
[362150556,1748040648647,-430.0,0.00019808,2]
[362150557,1748040648657,-312.08239734,0.00019808,2]
[362150558,1748040648666,-430.0,0.00019808,2]
[362150559,1748040648676,-430.0,0.00019808,2]
[362150560,1748040648685,-430.0,0.00019808,2]
[362150561,1748040648695,-430.0,0.00019808,2]
[362150562,1748040648705,-430.0,0.00019808,2]
[362150563,1748040648715,-430.0,0.00019808,2]
[362150564,1748040648724,-430.0,0.00019808,2]
[362150565,1748040648734,-430.0,0.00019808,2]
[362150566,1748040648743,-430.0,0.00019808,2]
[362150567,1748040648752,-437.15110351,0.00019808,2]
[362150568,1748040648761,-430.0,0.00019808,2]
[362150569,1748040648771,-430.0,0.00019808,2]
[362150570,1748040648780,-430.0,0.00019808,2]
[362150571,1748040648790,-430.0,0.00019808,2]
[362150572,1748040648799,-430.0,0.00019808,2]
[362150573,1748040648810,-430.0,0.00019808,2]
[362150575,1748040648819,-482.9,0.00019808,2]
[362150576,1748040648829,-430.0,0.00019808,2]
[362150577,1748040648839,-430.0,0.00019808,2]
[362150578,1748040648849,-430.0,0.00019808,2]
[362150579,1748040648858,-430.0,0.00019808,2]
[362150580,1748040648868,-430.0,0.00019808,2]
[362150581,1748040648877,-430.0,0.00019808,2]
[362150582,1748040648887,-430.0,0.00019808,2]
[362150583,1748040648896,-528.5,0.00019808,2]
[362150584,1748040648907,-430.0,0.00019808,2]
[362150585,1748040648917,-430.0,0.00019808,2]
[362150586,1748040648927,-430.0,0.00019808,2]
[362150587,1748040648937,-430.0,0.00019808,2]
[362150588,1748040648946,-430.0,0.00019808,2]
[362150589,1748040648955,-430.0,0.00019808,2]
[362150590,1748040648965,-430.0,0.00019808,2]
[362150591,1748040648974,-430.0,0.00019808,2]
[362150592,1748040648983,-430.0,0.00019808,2]
[362150593,1748040648993,-430.0,0.00019808,2]
[362150594,1748040649002,-430.0,0.00019808,2]
[362150595,1748040649012,-430.0,0.00019808,2]
[362150596,1748040649021,-430.0,0.00019808,2]
[362150597,1748040649030,-430.0,0.00019808,2]
[362150598,1748040649040,-430.0,0.00019808,2]
[362150599,1748040649050,-430.0,0.00019808,2]
[362150600,1748040649060,-430.0,0.00019808,2]
[362150601,1748040649070,-430.0,0.00019808,2]
[362150602,1748040649079,-430.0,0.00019808,2]
[362150603,1748040649089,-430.0,0.00019808,2]
[362150604,1748040649099,-430.0,0.00019808,2]
[362150605,1748040649109,-515.6,0.00019808,2]
[362150606,1748040649119,-430.0,0.00019808,2]
[362150607,1748040649129,-430.0,0.00019808,2]
[362150608,1748040649138,-349.58,0.00019808,2]
[362150609,1748040649147,-430.0,0.00019808,2]
[362150610,1748040649157,-430.0,0.00019808,2]
[362150611,1748040649167,-430.0,0.00019808,2]
[362150612,1748040649177,-430.0,0.00019808,2]
[362150613,1748040649186,-430.0,0.00019808,2]
[362150614,1748040649199,-430.0,0.00019808,2]
[362150615,1748040649209,-430.0,0.00019808,2]
[362150616,1748040649220,-430.0,0.00019808,2]
[362150617,1748040649230,-430.0,0.00019808,2]
[362150618,1748040649242,-430.0,0.00019808,2]
[362150619,1748040649251,-430.0,0.00019808,2]
[362150620,1748040649260,-430.0,0.00019808,2]
[362150621,1748040649271,-430.0,0.00019808,2]
[362150622,1748040649281,-442.02,0.00019808,2]
[362150623,1748040649290,-430.0,0.00019808,2]
[362150624,1748040649299,-430.0,0.00019808,2]
[362150625,1748040649309,-430.0,0.00019808,2]
[362150626,1748040649318,-430.0,0.00019808,2]
[362150627,1748040649328,-430.0,0.00019808,2]
[362150628,1748040649337,-430.0,0.00019808,2]
[362150629,1748040649347,-196.75079417,0.00019808,2]
[362150630,1748040649357,-430.0,0.00019808,2]
[362150631,1748040649367,-430.0,0.00019808,2]
[362150632,1748040649377,-430.0,0.00019808,2]
[362150633,1748040649386,-430.0,0.00019808,2]
[362150634,1748040649396,-430.0,0.00019808,2]
[362150635,1748040649406,-430.0,0.00019808,2]
[362150636,1748040649415,-430.0,0.00019808,2]
[362150637,1748040649426,-559.60740746,0.00019808,2]
[362150638,1748040649435,-430.0,0.00019808,2]
[362150639,1748040649445,-430.0,0.00019808,2]
[362150640,1748040649455,-430.0,0.00019808,2]
[362150641,1748040649465,-430.0,0.00019808,2]
[362150642,1748040649474,-234.00087725,0.00019808,2]
[362150643,1748040649484,-430.0,0.00019808,2]
[362150644,1748040649493,-430.0,0.00019808,2]
[362150645,1748040649502,-430.0,0.00019808,2]
[362150646,1748040649512,-282.47,0.00019808,2]
[362150647,1748040649521,-430.0,0.00019808,2]
[362150648,1748040649531,-430.0,0.00019808,2]
[362150649,1748040649540,-430.0,0.00019808,2]
[362150650,1748040649550,-430.0,0.00019808,2]
[362150651,1748040649561,-445.38,0.00019808,2]
[362150653,1748040649570,-430.0,0.00019808,2]
[362150654,1748040649579,-430.0,0.00019808,2]
[362150655,1748040649590,-430.0,0.00019808,2]
[362150656,1748040649600,-430.0,0.00019808,2]
[362150657,1748040649609,-490.0,0.00019808,2]
[362150658,1748040649618,-430.0,0.00019808,2]
[362150659,1748040649627,-430.0,0.00019808,2]
[362150660,1748040649636,-430.0,0.00019808,2]
[362150661,1748040649645,-430.0,0.00019808,2]
[362150662,1748040649655,-430.0,0.00019808,2]
[362150663,1748040649664,-430.0,0.00019808,2]
[362150664,1748040649673,-430.0,0.00019808,2]
[362150665,1748040649683,-470.0,0.00019808,2]
[362150666,1748040649692,-516.59345434,0.00019808,2]
[362150667,1748040649702,-430.0,0.00019808,2]
[362150668,1748040649712,-430.0,0.00019808,2]
[362150669,1748040649722,-430.0,0.00019808,2]
[362150670,1748040649731,-430.0,0.00019808,2]
[362150671,1748040649741,-430.0,0.00019808,2]
[362150672,1748040649750,-430.0,0.00019808,2]
[362150673,1748040649760,-430.0,0.00019808,2]
[362150674,1748040649770,-430.0,0.0001981,2]
[362150675,1748040649781,-430.0,0.0001981,2]
[362150676,1748040649790,-430.0,0.0001981,2]
[362150677,1748040649801,-430.0,0.0001981,2]
[362150678,1748040649810,-430.0,0.0001981,2]
[362150679,1748040649819,-430.0,0.0001981,2]
[362150680,1748040649829,-532.16007376,0.0001981,2]
[362150681,1748040649839,-430.0,0.0001981,2]
[362150682,1748040649849,-430.0,0.0001981,2]
[362150683,1748040649858,-430.0,0.0001981,2]
[362150684,1748040649868,-430.0,0.0001981,2]
[362150685,1748040649878,-430.0,0.0001981,2]
[362150686,1748040649888,-344.50975555,0.0001981,2]
[362150687,1748040649899,-430.0,0.0001981,2]
[362150688,1748040649910,-430.0,0.0001981,2]
[362150689,1748040649919,-430.0,0.0001981,2]
[362150690,1748040649929,-430.0,0.0001981,2]
[362150691,1748040649939,-430.0,0.0001981,2]
[362150692,1748040649948,-430.0,0.0001981,2]
[362150693,1748040649958,-430.0,0.0001981,2]
[362150694,1748040649967,-370.0,0.0001981,2]
[362150695,1748040649976,-430.0,0.0001981,2]
[362150696,1748040649986,-430.0,0.0001981,2]
[362150697,1748040649996,-430.0,0.0001981,2]
[362150698,1748040650006,-430.0,0.0001981,2]
[362150699,1748040650016,-430.0,0.0001981,2]
[362150700,1748040650026,-430.0,0.0001981,2]
[362150701,1748040650036,-430.0,0.0001981,2]
[362150702,1748040650045,-430.0,0.0001981,2]
[362150703,1748040650055,-430.0,0.0001981,2]
[362150704,1748040650065,-430.0,0.0001981,2]
[362150705,1748040650075,-430.0,0.0001981,2]
[362150706,1748040650087,-430.0,0.0001981,2]
[362150707,1748040650097,-430.0,0.0001981,2]
[362150708,1748040650107,-201.30607031,0.0001981,2]
[362150709,1748040650117,-430.0,0.00019894,2]
[362150710,1748040650127,-430.0,0.00019894,2]
[362150711,1748040650137,-430.0,0.00019894,2]
[362150712,1748040650147,-430.0,0.00019894,2]
[362150713,1748040650156,-430.0,0.00019894,2]
[362150714,1748040650166,-519.87792369,0.00019894,2]
[362150715,1748040650175,-430.0,0.00019894,2]
[362150716,1748040650185,-389.82535415,0.00019894,2]
[362150717,1748040650197,-430.0,0.00019894,2]
[362150718,1748040650207,-430.0,0.00019894,2]
[362150719,1748040650217,-430.0,0.00019894,2]
[362150720,1748040650228,-430.0,0.00019894,2]
[362150721,1748040650237,-430.0,0.00019894,2]
[362150722,1748040650246,-430.0,0.00019894,2]
[362150723,1748040650257,-430.0,0.00019894,2]
[362150724,1748040650267,-430.0,0.00019894,2]
[362150725,1748040650277,-430.0,0.00019894,2]
[362150726,1748040650286,-430.0,0.00019894,2]
[362150727,1748040650296,-430.0,0.00019894,2]
[362150728,1748040650305,-430.0,0.00019894,2]
[362150729,1748040650315,-430.0,0.00019894,2]
[362150730,1748040650326,-430.0,0.00019894,2]
[362150731,1748040650336,-430.0,0.00019894,2]
[362150732,1748040650473,-430.0,0.00019894,2]
[362150733,1748040650483,-430.0,0.00019894,2]
[362150734,1748040650493,-210.06,0.00019894,2]
[362150735,1748040650503,-430.0,0.00019894,2]
[362150736,1748040650513,-470.0,0.00019894,2]
[362150737,1748040650523,-430.0,0.00019894,2]
[362150738,1748040650533,-496.2,0.00019894,2]
[362150739,1748040650543,-470.0,0.00019894,2]
[362150740,1748040650552,-430.0,0.00019894,2]
[362150741,1748040650562,-559.4,0.00019894,2]
[362150742,1748040650572,-330.0,0.00019894,2]
[362150743,1748040650583,-430.0,0.00019894,2]
[362150744,1748040650593,-542.69518173,0.00019894,2]
[362150745,1748040650603,-430.0,0.00019894,2]
[362150746,1748040650612,-430.0,0.00019894,2]
[362150747,1748040650622,-430.0,0.00019894,2]
[362150748,1748040650633,-331.75075273,0.00019894,2]
[362150749,1748040650643,-430.0,0.00019894,2]
[362150750,1748040650652,-430.0,0.00019894,2]
[362150751,1748040650663,-430.0,0.00019894,2]
[362150752,1748040650672,-430.0,0.00019894,2]
[362150753,1748040650682,-430.0,0.00019894,2]
[362150754,1748040650691,-158.98126907,0.00019894,2]
[362150755,1748040650700,-430.0,0.00019894,2]
[362150756,1748040650709,-430.0,0.00019894,2]
[362150757,1748040650720,-430.0,0.00019914,2]
[362150758,1748040650730,-567.88,0.00019914,2]
[362150759,1748040650740,-430.0,0.00019914,2]
[362150760,1748040650749,-430.0,0.00019915,2]
[362150761,1748040650760,-430.0,0.00019915,2]
[362150762,1748040650769,-430.0,0.00019915,2]
[362150763,1748040650779,-430.0,0.00019915,2]
[362150764,1748040650788,-960.0,0.00019965,2]
[362150765,1748040650798,-430.0,0.00020081,2]
[362150766,1748040650807,-175.76,0.00020081,2]
[362150767,1748040650817,-430.0,0.00020081,2]
[362150768,1748040650827,-176.28,0.00020081,2]
[362150769,1748040650836,-430.0,0.00020081,2]
[362150770,1748040650846,-430.0,0.00020081,2]
[362150771,1748040650855,-430.0,0.00020081,2]
[362150772,1748040650865,-430.0,0.00020081,2]
[362150773,1748040650874,-430.0,0.00020081,2]
[362150774,1748040650884,-430.0,0.00020081,2]
[362150775,1748040650893,-268.8,0.00020081,2]
[362150776,1748040650903,-430.0,0.00020081,2]
[362150777,1748040650912,-430.0,0.00020081,2]
[362150778,1748040650922,-430.0,0.00020081,2]
[362150779,1748040650932,-365.32,0.00020081,2]
[362150780,1748040650941,-430.0,0.00020081,2]
[362150781,1748040650950,-236.58,0.00020081,2]
[362150782,1748040650961,-480.5,0.00020081,2]
[362150783,1748040650971,-389.48,0.00020081,2]
[362150784,1748040650980,-430.0,0.00020081,2]
[362150785,1748040650990,-430.0,0.00020081,2]
[362150786,1748040650999,-430.0,0.00020081,2]
[362150787,1748040651009,-430.0,0.00020081,2]
[362150788,1748040651019,-210.0,0.00020081,2]
[362150789,1748040651029,-430.0,0.00020081,2]
[362150790,1748040651038,-430.0,0.00020081,2]
[362150791,1748040651048,-442.04,0.00020082,2]
[362150792,1748040651057,-239.14,0.00020082,2]
[362150793,1748040651068,-430.0,0.00020082,2]
[362150795,1748040651077,-282.7,0.00020082,2]
[362150796,1748040651087,-430.0,0.00020082,2]
[362150797,1748040651098,-430.0,0.00020082,2]
[362150798,1748040651107,-430.0,0.00020082,2]
[362150799,1748040651117,-422.24,0.00020082,2]
[362150800,1748040651127,-430.0,0.00020082,2]
[362150801,1748040651138,-430.0,0.00020082,2]
[362150802,1748040651147,-450.0,0.00020082,2]
[362150803,1748040651157,-450.0,0.00020082,2]
[362150804,1748040651166,-546.69,0.00020084,2]
[362150805,1748040651176,-520.58,0.00020168,2]
[362150806,1748040651185,-188.0,0.00020168,2]
[362150807,1748040651198,-430.0,0.00020168,2]
[362150808,1748040651208,-222.38,0.00020168,2]
[362150809,1748040651218,-430.0,0.00020188,2]
[362150810,1748040651227,-239.0,0.00020188,2]
[362150811,1748040651237,-430.0,0.00020189,2]
[362150812,1748040651247,-430.0,0.00020189,2]
[362150813,1748040651257,-430.0,0.00020189,2]
[362150814,1748040651267,-430.0,0.00020189,2]
[362150815,1748040651277,-185.96,0.00020355,2]
[362150816,1748040651287,-210.05,0.00020355,2]
[362150817,1748040651297,-430.0,0.00020355,2]
[362150818,1748040651307,-430.0,0.00020355,2]
[362150819,1748040651318,-232.86,0.00020355,2]
[362150820,1748040651329,-526.36,0.00020355,2]
[362150821,1748040651339,-430.0,0.00020355,2]
[362150822,1748040651350,-430.0,0.00020355,2]
[362150823,1748040651359,-489.58,0.00020355,2]
[362150824,1748040651370,-430.0,0.00020355,2]
[362150825,1748040651380,-430.0,0.00020355,2]
[362150826,1748040651390,-430.0,0.00020355,2]
[362150827,1748040651399,-430.0,0.00020355,2]
[362150828,1748040651408,-430.0,0.00020355,2]
[362150829,1748040651418,-430.0,0.00020355,2]
[362150830,1748040651427,-430.0,0.00020355,2]
[362150831,1748040651437,-430.0,0.00020355,2]
[362150832,1748040651446,-430.0,0.00020355,2]
[362150833,1748040651455,-338.16,0.00020356,2]
[362150834,1748040651465,-443.54,0.00020356,2]
[362150835,1748040651474,-224.94,0.00020356,2]
[362150836,1748040651484,-430.0,0.00020356,2]
[362150837,1748040651493,-430.0,0.00020356,2]
[362150838,1748040651502,-273.94,0.00020356,2]
[362150839,1748040651511,-258.36,0.00020442,2]
[362150840,1748040651521,-430.0,0.00020462,2]
[362150841,1748040651531,-430.0,0.00020463,2]
[362150842,1748040651542,-430.0,0.00020463,2]
[362150843,1748040651551,-430.0,0.00020463,2]
[362150844,1748040651561,-430.0,0.00020463,2]
[362150845,1748040651570,-500.0,0.00020548,2]
[362150846,1748040651579,-500.0,0.00020548,2]
[362150847,1748040651588,-500.0,0.00020548,2]
[362150848,1748040651599,-500.0,0.00020548,2]
[362150849,1748040651608,-500.0,0.00020548,2]
[362150850,1748040651618,-500.0,0.00020548,2]
[362150851,1748040651627,-500.0,0.00020548,2]
[362150852,1748040651636,-500.0,0.00020548,2]
[362150853,1748040651645,-500.0,0.00020548,2]
[362150854,1748040651655,-500.0,0.00020548,2]
[362150855,1748040651669,-430.0,0.00020629,2]
[362150856,1748040651678,-430.0,0.00020629,2]
[362150857,1748040651688,-430.0,0.00020629,2]
[362150858,1748040651700,-490.18,0.00020629,2]
[362150859,1748040651709,-161.52,0.00020629,2]
[362150860,1748040651719,-324.42,0.00020629,2]
[362150861,1748040651728,-325.97,0.00020629,2]
[362150862,1748040651739,-430.0,0.00020629,2]
[362150863,1748040651748,-314.12,0.0002063,2]
[362150864,1748040651757,-500.78,0.0002063,2]
[362150865,1748040651767,-430.0,0.00020736,2]
[362150866,1748040651776,-430.0,0.00020737,2]
[362150867,1748040651786,-430.0,0.00020737,2]
[362150868,1748040651795,-570.04,0.00020737,2]
[362150869,1748040651805,-430.0,0.00020737,2]
[362150870,1748040651814,-252.21511056,0.00020776,2]
[362150871,1748040651823,-172.35696229,0.00020863,2]
[362150872,1748040651833,-430.0,0.00020903,2]
[362150873,1748040651843,-265.88,0.00020903,2]
[362150874,1748040651854,-430.0,0.00020903,2]
[362150875,1748040651865,-430.0,0.00020903,2]
[362150876,1748040651876,-430.0,0.0002101,2]
[362150877,1748040651886,-430.0,0.00021011,2]
[362150878,1748040651896,-430.0,0.00021011,2]
[362150879,1748040651905,-207.4,0.00021132,2]
[362150880,1748040651915,-164.416,0.00021174,2]
[362150881,1748040651925,-315.07,0.00021177,2]
[362150882,1748040651936,-430.0,0.00021177,2]
[362150883,1748040651946,-430.0,0.00021177,2]
[362150884,1748040651956,-430.0,0.00021284,2]
[362150885,1748040651965,-430.0,0.00021285,2]
[362150886,1748040651975,-430.0,0.00021285,2]
[362150887,1748040651984,-430.0,0.00021451,2]
[362150888,1748040651994,-430.0,0.00021451,2]
[362150889,1748040652003,-430.0,0.00021558,2]
[362150890,1748040652013,-430.0,0.00021559,2]
[362150891,1748040652023,-430.0,0.00021559,2]
[362150892,1748040652034,-430.0,0.00021725,2]
[362150893,1748040652044,-430.0,0.00021725,2]
[362150894,1748040652054,-430.0,0.00021832,2]
[362150895,1748040652064,-430.0,0.00021833,2]
[362150896,1748040652080,-430.0,0.00021833,2]
[362150897,1748040652091,-430.0,0.00021999,2]
[362150898,1748040652102,-430.0,0.00021999,2]
[362150899,1748040652112,-430.0,0.00022106,2]
[362150900,1748040652124,-430.0,0.00022107,2]
[362150901,1748040652133,-430.0,0.00022107,2]
[362150902,1748040652143,-252.21511056,0.00022119,2]
[362150903,1748040652152,-172.35696229,0.00022208,2]
[362150904,1748040652162,-430.0,0.00022273,2]
[362150905,1748040652172,-430.0,0.00022273,2]
[362150906,1748040652182,-430.0,0.0002238,2]
[362150907,1748040652192,-430.0,0.00022381,2]
[362150908,1748040652205,-430.0,0.00022381,2]
[362150909,1748040652215,-215.0738,0.00022501,2]
[362150910,1748040652225,-430.0,0.00022547,2]
[362150911,1748040652235,-177.52,0.00022547,2]
[362150912,1748040652245,-324.93709927,0.00022654,2]
[362150913,1748040652254,-430.0,0.00022655,2]
[362150914,1748040652264,-430.0,0.00022655,2]
[362150915,1748040652275,-500.0,0.00022683,2]
[362150916,1748040652285,-430.0,0.00022821,2]
[362150917,1748040652295,-430.0,0.00022929,2]
[362150918,1748040652304,-430.0,0.00022929,2]
[362150919,1748040652314,-430.0,0.00023095,2]
[362150920,1748040652323,-508.13,0.00023203,2]
[362150921,1748040652359,-430.0,0.00023203,2]
[362150922,1748040652370,-5915.15,0.00023287,2]
[362150923,1748040652379,-430.0,0.00023369,2]
[362150924,1748040652389,-252.21511056,0.00023461,2]
[362150925,1748040652399,-172.35696229,0.00023554,2]
[362150926,1748040652409,-430.0,0.00023643,2]
[362150927,1748040652419,-223.0315306,0.0002387,2]
[362150928,1748040652428,-351.35663377,0.000239,2]
[362150929,1748040652438,-430.0,0.00023917,2]
[362150930,1748040652448,-430.0,0.00024191,2]
[362150931,1748040652458,-531.10773384,0.00024465,2]
[362150932,1748040652468,-379.938137,0.000245,2]
[362150933,1748040652477,-2796.3883365,0.00024658,2]
[362150934,1748040652487,-180.80096207,0.00024658,2]
[362150935,1748040652496,-252.21511056,0.00024804,2]
[362150936,1748040652506,-500.0,0.00024875,7]
[362150937,1748040652516,-1075.90902864,0.000249,2]
[362150938,1748040652525,-153684.27802176,0.000249,2]
[362150939,1748040652643,-316.03822774,0.000249,2]
[362151086,1748040780820,-5000.0,0.00013562,2]
[362151150,1748040847074,-5000.0,0.00013562,2]
[362151172,1748041006664,201788.97420338,0.00027,120]
[362151173,1748041082449,110634.0,0.00027397,120]
[362151174,1748041108502,100000.0,0.00027,120]
[362151175,1748041113667,100000.0,0.00027,120]
[362151178,1748041512344,-159.661453,0.00013699,2]
[362154099,1748041726344,159.918705,0.00027397,120]
[362154601,1748041832529,-159.795151,0.00013699,2]
[362154603,1748041832540,-252.3163941,0.00017241,2]
[362154605,1748041832550,-81.41204039,0.00017268,2]
[362154612,1748041832649,-5266.05532471,0.00017268,2]
[362154613,1748041832660,-172.35696229,0.00018165,2]
[362154614,1748041832671,-165.13255732,0.00018167,2]
[362154615,1748041832681,-300.0,0.00018167,2]
[362154616,1748041832691,-3927.96278661,0.00018168,2]
[362154617,1748041832700,-165.13255732,0.00018168,2]
[362154619,1748041832710,-225.08317339,0.00018265,2]
[362154620,1748041832719,-400.0,0.00018265,2]
[362154621,1748041832729,-430.0,0.00018265,2]
[362154622,1748041832738,-535.97763467,0.00018265,2]
[362154623,1748041832749,-430.0,0.00018265,2]
[362154625,1748041832759,-430.0,0.00018265,2]
[362154626,1748041832768,-400.0,0.00018265,2]
[362154627,1748041832779,-400.0,0.00018265,2]
[362154628,1748041832789,-430.0,0.00018265,2]
[362154629,1748041832799,-430.0,0.00018265,2]
[362154630,1748041832809,-430.0,0.00018265,2]
[362154631,1748041832818,-430.0,0.00018265,2]
[362154632,1748041832829,-400.0,0.00018265,2]
[362154633,1748041832839,-430.0,0.00018265,2]
[362154634,1748041832849,-430.0,0.00018265,2]
[362154635,1748041832859,-430.0,0.00018265,2]
[362154636,1748041832869,-595.25,0.00018265,2]
[362154637,1748041832880,-430.0,0.00018265,2]
[362154638,1748041832890,-400.0,0.00018265,2]
[362154639,1748041832900,-400.49679314,0.00018265,2]
[362154640,1748041832909,-430.0,0.00018265,2]
[362154641,1748041832920,-430.0,0.00018265,2]
[362154642,1748041832930,-430.0,0.00018265,2]
[362154644,1748041832941,-404.52771315,0.00018265,2]
[362154645,1748041832950,-400.55479638,0.00018265,2]
[362154646,1748041832961,-430.0,0.00018265,2]
[362154647,1748041832971,-400.51143366,0.00018265,2]
[362154648,1748041832981,-431.07,0.00018265,2]
[362154649,1748041832991,-289.68751607,0.00018265,2]
[362154650,1748041833000,-430.0,0.00018265,2]
[362154651,1748041833010,-400.0,0.00018265,2]
[362154652,1748041833020,-430.0,0.00018265,2]
[362154654,1748041833030,-430.0,0.00018265,2]
[362154655,1748041833042,-401.31252133,0.00018265,2]
[362154656,1748041833053,-430.0,0.00018265,2]
[362154657,1748041833064,-430.0,0.00018265,2]
[362154658,1748041833074,-400.60343225,0.00018265,2]
[362154659,1748041833085,-402.61675007,0.00018265,2]
[362154660,1748041833095,-430.0,0.00018265,2]
[362154661,1748041833104,-430.0,0.00018265,2]
[362154662,1748041833114,-430.0,0.00018265,2]
[362154663,1748041833128,-430.0,0.00018265,2]
[362154664,1748041833138,-400.0,0.00018266,2]
[362154665,1748041833148,-430.0,0.00018266,2]
[362154666,1748041833159,-430.0,0.00018266,2]
[362154667,1748041833170,-430.0,0.00018266,2]
[362154668,1748041833179,-430.0,0.00018266,2]
[362154669,1748041833190,-430.0,0.00018266,2]
[362154671,1748041833200,-430.0,0.00018266,2]
[362154672,1748041833209,-430.0,0.00018266,2]
[362154673,1748041833219,-430.0,0.00018266,2]
[362154674,1748041833230,-430.0,0.00018266,2]
[362154675,1748041833240,-430.0,0.00018266,2]
[362154677,1748041833250,-430.0,0.00018266,2]
[362154678,1748041833260,-430.0,0.00018266,2]
[362154679,1748041833270,-430.0,0.00018266,2]
[362154680,1748041833281,-430.0,0.00018266,2]
[362154682,1748041833291,-430.0,0.00018266,2]
[362154683,1748041833301,-430.0,0.00018266,2]
[362154684,1748041833312,-430.0,0.00018266,2]
[362154685,1748041833322,-430.0,0.00018266,2]
[362154686,1748041833333,-430.0,0.00018266,2]
[362154688,1748041833343,-430.0,0.00018266,2]
[362154689,1748041833354,-430.0,0.00018266,2]
[362154690,1748041833364,-430.0,0.00018266,2]
[362154691,1748041833374,-430.0,0.00018266,2]
[362154692,1748041833384,-430.0,0.00018266,2]
[362154693,1748041833395,-430.0,0.00018266,2]
[362154694,1748041833406,-430.0,0.00018266,2]
[362154695,1748041833420,-430.0,0.00018266,2]
[362154696,1748041833431,-430.0,0.00018266,2]
[362154698,1748041833443,-430.0,0.00018266,2]
[362154699,1748041833455,-430.0,0.00018266,2]
[362154700,1748041833465,-422.85710789,0.00018267,2]
[362154701,1748041833475,-160.0,0.00018267,2]
[362154702,1748041833486,-400.6170482,0.00018267,2]